bitfinex-derivatives/quotes_ETHF0:USTF0_20240915
["timestamp","ask_amount","ask_price","bid_price","bid_amount"]
[1726434540512,3.2078,2346.4,2346.3,0.42609]
[1726434541007,3.2078,2346.4,2345.6,0.82691]
[1726434541008,18.0794,2346.4,2345.6,0.82691]
[1726434541214,3.2078,2346.1,2345.6,0.4007]
[1726434541409,3.2078,2345.8,2345.5,0.42623]
[1726434541609,3.2078,2345.8,2345.4,0.42624]
[1726434542007,3.2078,2345.5,2345.2,4.9345151]
[1726434542216,4.61,2346.1,2344.9,0.8072]
[1726434542217,3.2078,2345.4,2344.9,0.8072]
[1726434542413,3.2078,2345.4,2345.0,5.3608451]
[1726434542613,3.2078,2345.4,2344.9,0.8072]
[1726434542809,3.2078,2345.4,2344.9,0.4187]
[1726434542810,0.42627,2345.3,2344.9,0.4187]
[1726434543012,0.42634,2345.0,2344.4,3.2078]
[1726434543210,3.2078,2344.8,2344.1,0.8072]
[1726434543410,3.2078,2344.8,2344.4,0.42642]
[1726434543919,3.2078,2344.8,2344.5,0.42642]
[1726434544310,3.2078,2344.6,2344.5,0.42642]
[1726434544811,3.63412,2345.1,2344.5,0.42642]
[1726434545014,0.33191124,2345.4,2344.6,3.2078]
[1726434545215,3.2078,2345.5,2344.9,0.42634]
[1726434545518,1.06521,2346.4,2345.2,3.2078]
[1726434545519,3.6157,2346.0,2345.2,3.2078]
[1726434545716,3.2078,2345.9,2345.4,0.42625]
[1726434545907,3.2078,2346.3,2345.3,4.96362531]
[1726434546113,3.2078,2346.3,2345.5,7.67379495]
[1726434546718,3.2078,2346.2,2345.5,4.46599495]
[1726434546918,3.2078,2346.2,2345.7,0.42619]
[1726434547312,3.2078,2346.2,2345.4,3.2078]
[1726434547619,3.2078,2346.2,2345.5,4.6747994]
[1726434548220,3.2078,2346.2,2345.6,0.42622]
[1726434548523,3.2078,2346.2,2345.7,0.4262]
[1726434549223,5.03608,2346.4,2345.7,0.4262]
[1726434549224,3.2078,2345.9,2345.7,0.4262]
[1726434549420,3.2078,2346.3,2345.7,0.4262]
[1726434549618,3.2078,2346.0,2345.5,4.6747994]
[1726434549926,3.2078,2346.0,2345.6,0.42621]
[1726434550221,3.2078,2346.0,2345.5,4.6747994]
[1726434550222,0.42617,2345.9,2345.5,4.6747994]
[1726434550529,0.42628,2345.3,2344.8,3.6248]
[1726434550721,3.2078,2345.0,2344.4,0.395]
[1726434550927,0.42629,2345.2,2344.6,0.42639]
[1726434551128,3.2078,2345.1,2344.6,0.42639]
[1726434551322,0.42629,2345.2,2344.6,0.42639]
[1726434551517,3.2078,2345.4,2344.7,4.74968729]
[1726434551919,3.2078,2345.4,2345.0,0.42631]
[1726434552221,3.2078,2345.4,2345.3,0.42627]
[1726434552420,3.2078,2345.4,2345.2,0.42628]
[1726434552614,3.2078,2345.4,2345.3,0.42627]
[1726434552823,3.63395,2346.0,2345.3,8.92137479]
[1726434553130,3.2078,2346.0,2345.4,0.42625]
[1726434553313,3.2078,2346.0,2345.5,0.42623]
[1726434553820,3.2078,2346.1,2345.5,0.42623]
[1726434554018,3.2078,2345.8,2345.6,4.84133743]
[1726434554330,3.2078,2345.8,2345.4,4.84133743]
[1726434554523,3.2078,2345.8,2345.4,9.10453743]
[1726434554820,3.2078,2345.8,2345.7,0.4262]
[1726434555217,3.2078,2345.8,2345.7,4.2632]
[1726434556423,3.2078,2345.8,2345.2,3.6028]
[1726434556424,3.2078,2345.8,2345.5,0.42623]
[1726434556731,3.2078,2345.8,2345.6,0.42622]
[1726434557323,3.2078,2345.8,2345.5,0.42623]
[1726434558717,3.2078,2345.8,2345.3,5.32330915]
[1726434559424,3.2078,2345.5,2345.3,4.89703915]
[1726434559615,3.2078,2345.5,2344.6,3.2078]
[1726434559924,3.63404,2345.5,2345.1,4.7049898]
[1726434560227,5.67543,2345.9,2345.0,0.42632]
[1726434560228,3.2078,2345.2,2345.0,0.42632]
[1726434560524,7.8178,2345.9,2345.1,4.7049898]
[1726434560914,3.63401,2345.7,2345.1,0.42631]
[1726434561118,3.2078,2345.7,2344.9,3.2078]
[1726434561325,3.2078,2345.7,2345.3,0.42626]
[1726434561526,3.2078,2345.7,2344.9,3.2078]
[1726434561527,3.2078,2345.7,2345.4,0.42625]
[1726434563232,3.2078,2345.7,2345.3,0.42626]
[1726434563527,3.2078,2345.7,2345.0,4.79669913]
[1726434563725,3.2078,2345.7,2345.3,0.42626]
[1726434563917,3.2078,2345.7,2345.4,0.42625]
[1726434564420,3.54495233,2345.7,2345.3,0.42627]
[1726434564625,3.54495233,2345.7,2345.4,0.42625]
[1726434565423,0.33715233,2345.7,2345.2,7.97500662]
[1726434565736,3.2078,2346.0,2345.6,0.42622]
[1726434566621,3.2078,2346.0,2345.7,0.4262]
[1726434566829,3.2078,2346.0,2345.4,0.4129]
[1726434566830,3.63395,2346.0,2345.4,0.4129]
[1726434567020,3.2078,2345.7,2345.5,0.42623]
[1726434567721,3.2078,2345.6,2345.5,0.42623]
[1726434567923,3.63395,2346.0,2345.5,0.42623]
[1726434568124,0.42617,2345.9,2345.5,0.42623]
[1726434568323,3.63397,2345.9,2345.5,0.42623]
[1726434568527,0.42617,2345.9,2345.5,0.42623]
[1726434568719,3.63396,2346.0,2345.6,0.42622]
[1726434569531,0.42616,2346.0,2345.6,0.42622]
[1726434569733,3.63394,2346.1,2345.6,0.42622]
[1726434569930,3.2078,2346.0,2345.4,0.4129]
[1726434570128,3.2078,2346.3,2345.7,4.82055424]
[1726434570428,3.2078,2346.3,2346.1,0.42612]
[1726434570824,3.2078,2346.3,2346.0,0.42613]
[1726434572631,3.2078,2346.3,2346.1,4.84316871]
[1726434572833,3.2078,2346.3,2346.1,5.26928871]
[1726434573022,3.2078,2346.3,2346.0,0.42614]
[1726434573429,0.42607,2346.5,2346.1,4.89616967]
[1726434573632,3.2078,2346.2,2346.1,4.89616967]
[1726434573835,0.42607,2346.5,2346.1,4.89616967]
[1726434574330,3.2078,2346.2,2346.1,4.89616967]
[1726434574528,3.63386,2346.5,2346.1,4.89616967]
[1726434574925,3.2078,2346.2,2346.1,4.89616967]
[1726434575126,0.42607,2346.4,2346.1,4.89616967]
[1726434575431,3.2078,2346.3,2346.0,0.42614]
[1726434575940,4.43527974,2346.7,2346.0,0.42614]
[1726434575941,0.42606,2346.5,2346.0,0.42614]
[1726434576229,0.42606,2346.5,2345.8,0.4046]
[1726434576230,3.2078,2346.2,2346.1,0.42613]
[1726434576931,3.2078,2346.5,2345.9,4.94747457]
[1726434577129,0.3935,2346.8,2346.1,4.45148894]
[1726434577329,3.63378,2346.9,2346.4,0.42606]
[1726434577534,3.63378,2346.9,2346.4,0.42607]
[1726434577535,3.63379,2346.9,2346.4,0.42607]
[1726434578239,3.2078,2346.9,2346.2,0.4225]
[1726434578438,3.2078,2346.9,2346.5,0.42604]
[1726434578729,3.2078,2346.9,2346.3,4.63479268]
[1726434578935,3.2078,2346.6,2345.8,0.4046]
[1726434579123,3.2078,2346.6,2345.9,4.69572]
[1726434579326,3.2078,2346.6,2346.4,0.42606]
[1726434579531,4.09,2347.0,2346.4,0.42606]
[1726434579729,3.2078,2346.8,2346.4,0.42606]
[1726434580029,1.06483,2347.3,2345.9,0.4225]
[1726434580030,3.2078,2347.1,2346.5,0.42605]
[1726434580228,0.42596,2347.0,2346.5,5.06877869]
[1726434580435,3.63376,2347.1,2346.4,3.2078]
[1726434580634,3.63376,2347.1,2346.5,0.42604]
[1726434580829,3.63376,2347.1,2346.5,5.06876869]
[1726434581030,0.42596,2347.0,2346.5,0.42604]
[1726434581534,3.63376,2347.1,2346.5,0.42604]
[1726434582038,0.42597,2347.0,2346.5,0.42604]
[1726434582337,3.63376,2347.1,2346.5,0.42604]
[1726434582728,0.42597,2347.0,2346.5,0.42604]
[1726434584431,3.2078,2347.1,2346.4,0.42606]
[1726434584739,0.42597,2347.0,2346.5,4.82468058]
[1726434584932,3.63376,2347.1,2346.6,0.42603]
[1726434585125,3.63376,2347.1,2346.6,0.82513]
[1726434585540,3.63376,2347.1,2346.6,0.3991]
[1726434585541,3.2078,2347.1,2346.6,0.3991]
[1726434586127,3.63375,2347.1,2346.6,0.82513]
[1726434587239,3.63375,2347.1,2346.6,0.3991]
[1726434587240,3.2078,2347.1,2346.6,0.3991]
[1726434587433,3.2078,2347.1,2347.0,0.42596]
[1726434588739,3.2078,2347.4,2346.7,7.89946941]
[1726434589233,3.2078,2347.4,2347.1,0.42593]
[1726434589439,3.2078,2347.4,2347.1,0.42594]
[1726434592644,3.2078,2347.4,2346.7,4.69166941]
[1726434592940,4.516,2346.8,2346.7,3.93326941]
[1726434593143,4.516,2346.8,2345.5,0.3852]
[1726434593144,1.06523,2346.4,2345.5,0.3852]
[1726434593343,3.2078,2345.8,2345.5,0.3852]
[1726434593542,0.42621,2345.7,2345.3,4.58450889]
[1726434593847,3.2078,2345.4,2345.3,4.58450889]
[1726434594037,3.2078,2345.4,2345.3,5.01077889]
[1726434594241,3.2078,2345.7,2345.4,0.42625]
[1726434594744,3.2078,2345.7,2345.3,5.01077889]
[1726434596535,3.2078,2345.7,2345.3,5.01076889]
[1726434596744,3.2078,2345.4,2345.3,4.58450889]
[1726434596940,3.2078,2345.4,2345.0,0.42632]
[1726434597244,3.2078,2345.4,2345.0,4.51689369]
[1726434597445,3.2078,2345.4,2345.1,0.42631]
[1726434597650,3.2078,2345.4,2345.0,4.94321369]
[1726434597842,3.2078,2345.4,2345.2,4.51689369]
[1726434598049,3.2078,2345.4,2345.1,5.36065614]
[1726434598451,3.2078,2345.4,2345.1,0.42631]
[1726434598652,0.42628,2345.3,2344.9,0.3852]
[1726434598944,3.63406,2345.4,2344.9,0.81154]
[1726434599448,0.42628,2345.3,2344.9,0.3852]
[1726434599750,3.63407,2345.4,2344.9,0.81154]
[1726434600048,3.63407,2345.4,2344.9,0.3852]
[1726434600544,0.42628,2345.3,2344.9,0.3852]
[1726434600947,3.2078,2345.4,2344.9,0.3852]
[1726434600948,3.63406,2345.4,2344.9,0.3852]
[1726434602043,3.2078,2345.4,2344.9,0.3852]
[1726434602248,3.2078,2345.9,2345.1,3.2078]
[1726434602545,3.2078,2345.3,2344.9,0.81154]
[1726434602750,3.2078,2345.3,2344.9,0.3852]
[1726434602948,3.2078,2345.3,2345.0,4.75483927]
[1726434603138,3.2078,2345.3,2345.0,9.01883927]
[1726434603342,3.2078,2345.6,2345.2,0.42628]
[1726434603554,3.2078,2345.6,2345.0,4.75483927]
[1726434603750,3.63408,2345.3,2344.9,0.3852]
[1726434603945,3.2078,2345.3,2344.9,0.3852]
[1726434605544,3.2078,2345.3,2345.0,4.92558232]
[1726434605749,3.2078,2345.3,2345.0,4.49925232]
[1726434605968,3.2078,2345.3,2345.0,4.92557232]
[1726434606851,7.2978,2345.3,2345.0,4.49925232]
[1726434607049,7.2978,2345.3,2344.4,0.3823]
[1726434607251,1.06557,2345.6,2344.4,0.3823]
[1726434607252,3.2078,2344.5,2344.4,0.3823]
[1726434608053,3.2078,2344.5,2343.9,0.42653]
[1726434608054,7.89983,2344.5,2343.9,0.42653]
[1726434608253,3.2078,2344.2,2344.1,0.42649]
[1726434608446,3.2078,2344.2,2344.1,4.78778622]
[1726434608756,3.2078,2344.2,2343.5,0.3895]
[1726434608963,1.06606,2344.5,2343.4,0.4063]
[1726434608964,3.2078,2343.8,2343.4,0.4063]
[1726434609153,3.2078,2343.5,2343.4,0.4063]
[1726434609451,3.63435,2343.8,2343.4,0.4063]
[1726434609653,3.2078,2343.5,2343.4,0.4063]
[1726434610243,3.2078,2343.5,2342.8,0.7775]
[1726434610455,0.33707072,2344.4,2342.8,0.7775]
[1726434610456,3.2078,2343.2,2342.8,0.7775]
[1726434610657,3.2078,2343.2,2342.9,4.8716998]
[1726434610860,0.42669,2343.0,2342.9,4.8716998]
[1726434611046,3.2078,2343.2,2342.5,3.6141]
[1726434611252,3.2078,2343.2,2342.9,0.42669]
[1726434611555,3.63449,2343.1,2342.6,4.87314235]
[1726434611751,3.2078,2342.8,2342.2,0.388]
[1726434612146,1.06649,2343.6,2342.0,0.82927]
[1726434612147,2.74447691,2342.1,2342.0,0.82927]
[1726434612455,2.74447691,2342.1,2341.4,0.53358283]
[1726434612662,3.63471,2341.8,2341.4,0.53358283]
[1726434612959,3.2078,2341.8,2340.7,0.814]
[1726434613260,3.2078,2341.2,2341.0,5.05115773]
[1726434613555,3.2078,2341.2,2340.4,3.2078]
[1726434613761,4.09,2341.3,2340.5,0.42714]
[1726434613762,3.2078,2340.8,2340.5,0.42714]
[1726434614052,3.2078,2340.8,2340.4,3.63496]
[1726434614260,4.62,2340.7,2340.4,3.2032]
[1726434614459,9.2078,2340.8,2339.3,0.7349219]
[1726434614460,7.8278,2340.5,2339.3,0.7349219]
[1726434614753,6.0,2340.8,2339.3,3.9427219]
[1726434614754,3.2078,2340.2,2339.3,3.9427219]
[1726434614954,3.2078,2340.2,2339.4,7.8703165]
[1726434615147,3.2078,2340.2,2339.5,0.4123]
[1726434615348,3.2078,2340.2,2339.7,0.42728]
[1726434615548,3.2078,2340.8,2339.6,4.4903379]
[1726434615757,3.2078,2340.5,2339.8,4.4903379]
[1726434615946,3.2078,2340.5,2339.8,0.42726]
[1726434616152,3.2078,2340.5,2339.6,4.75226296]
[1726434616450,7.8278,2339.7,2338.4,3.2078]
[1726434616649,7.8278,2339.7,2338.8,0.42744]
[1726434616865,0.42726,2340.0,2339.0,0.42742]
[1726434616866,3.2078,2339.4,2339.0,0.42742]
[1726434617155,3.2078,2339.8,2338.7,4.62]
[1726434617356,3.2078,2339.5,2339.0,0.42741]
[1726434617546,4.62,2340.3,2339.0,3.2078]
[1726434617547,3.2078,2340.0,2339.0,3.2078]
[1726434617746,4.62,2340.3,2339.1,4.27111947]
[1726434617747,3.2078,2339.5,2339.1,4.27111947]
[1726434617956,3.2078,2339.5,2338.8,0.42746]
[1726434618155,3.2078,2339.9,2339.0,3.2078]
[1726434618356,3.2078,2339.5,2338.8,3.2078]
[1726434618565,3.2078,2339.8,2339.1,0.83061526]
[1726434618953,3.2078,2339.3,2339.1,0.4274]
[1726434619158,3.2078,2339.3,2338.4,0.21202991]
[1726434619159,3.2078,2339.3,2338.4,3.41982991]
[1726434619460,3.2078,2339.3,2338.9,0.42743]
[1726434619652,3.2078,2339.3,2338.4,3.2078]
[1726434619861,3.2078,2339.3,2338.5,4.75945672]
[1726434620052,3.2078,2339.3,2338.4,3.2078]
[1726434620355,3.2078,2339.6,2338.8,0.42744]
[1726434620556,3.2078,2339.6,2338.4,3.2078]
[1726434620953,3.2078,2339.3,2338.4,3.2078]
[1726434621161,3.2078,2339.0,2338.3,0.42754]
[1726434621362,3.2078,2339.0,2338.6,0.42748]
[1726434621660,3.2078,2339.0,2338.7,0.42746]
[1726434621858,3.2078,2339.0,2338.6,3.63529]
[1726434622059,3.2078,2339.6,2338.9,3.2078]
[1726434622265,3.2078,2339.6,2339.1,0.42739]
[1726434622455,12.103,2339.6,2338.7,0.8056]
[1726434622760,7.8278,2339.6,2338.6,3.2078]
[1726434623152,7.8278,2339.6,2338.7,0.42748]
[1726434623459,7.8278,2339.6,2338.6,3.2078]
[1726434623656,7.8278,2339.6,2338.8,4.88022697]
[1726434623860,7.8278,2339.6,2338.7,0.42747]
[1726434624056,7.8278,2339.6,2338.9,3.2078]
[1726434624358,7.8278,2339.6,2339.1,0.42739]
[1726434624359,3.2078,2339.6,2339.1,0.42739]
[1726434624659,1.28173,2340.9,2339.2,0.01768694]
[1726434624660,3.2078,2340.4,2339.2,0.01768694]
[1726434624865,7.8278,2339.8,2339.2,0.01768694]
[1726434625061,7.8278,2339.8,2338.9,0.42744]
[1726434625251,7.8278,2339.8,2338.7,3.2078]
[1726434625456,7.8278,2339.8,2338.8,3.2078]
[1726434626265,7.8278,2339.8,2338.9,0.42743]
[1726434626450,7.8278,2339.8,2338.8,3.63525]
[1726434626656,7.8278,2339.5,2338.8,3.2078]
[1726434626963,3.2078,2339.2,2338.5,0.3941]
[1726434627754,3.2078,2339.2,2338.7,3.2078]
[1726434628449,3.2078,2339.2,2338.5,0.3941]
[1726434629052,4.62,2339.5,2338.7,3.2078]
[1726434629053,3.2078,2339.5,2338.7,3.2078]
[1726434629252,7.8278,2339.5,2338.6,4.53115977]
[1726434629452,3.2078,2339.2,2338.5,0.3941]
[1726434629655,4.62,2339.1,2338.5,0.3941]
[1726434629861,3.2078,2338.6,2338.0,3.2078]
[1726434630162,4.62,2338.8,2338.0,3.2078]
[1726434630859,4.62,2338.8,2337.7,3.2078]
[1726434630860,4.62,2338.5,2337.7,3.2078]
[1726434631055,3.2078,2338.5,2337.7,3.2078]
[1726434631257,3.2078,2338.5,2337.8,4.88722129]
[1726434631561,3.2078,2338.5,2337.7,3.2078]
[1726434631758,4.62,2338.4,2337.7,3.2078]
[1726434632361,3.2078,2338.5,2337.7,3.2078]
[1726434632556,4.62,2338.9,2338.1,3.2078]
[1726434632760,167.72382184,2339.3,2338.4,3.2078]
[1726434632761,170.93162184,2339.3,2338.4,3.2078]
[1726434632961,170.93162184,2339.3,2338.8,3.2078]
[1726434633157,4.62,2339.2,2338.5,4.53077363]
[1726434633362,4.62,2339.2,2338.4,3.2078]
[1726434633363,167.72382184,2339.3,2339.0,3.2078]
[1726434633753,166.65480347,2339.3,2339.2,3.2078]
[1726434633960,166.01860347,2339.3,2339.2,3.2078]
[1726434634158,160.18513817,2339.3,2339.2,14.15791867]
[1726434634363,160.18513817,2339.3,2339.2,18.43311867]
[1726434634569,157.64073817,2339.3,2339.2,18.43311867]
[1726434634759,153.80358187,2339.3,2339.2,18.43311867]
[1726434634953,152.53208187,2339.3,2339.2,18.43311867]
[1726434635371,104.49868187,2339.3,2339.2,22.53311867]
[1726434635661,82.98168153,2339.3,2339.2,23.03964184]
[1726434635857,78.52458077,2339.3,2339.2,23.25392327]
[1726434636056,78.52458077,2339.3,2339.2,23.77392327]
[1726434636764,78.09758077,2339.3,2339.2,23.7739208]
[1726434638062,57.12758077,2339.3,2339.2,23.85243157]
[1726434638858,56.91758077,2339.3,2339.2,23.63815014]
[1726434639463,56.91758077,2339.3,2339.2,23.85527554]
[1726434640065,56.91758077,2339.3,2339.2,23.55963475]
[1726434640066,56.70458077,2339.3,2339.2,23.55963475]
[1726434640261,56.70458077,2339.3,2339.2,23.63814396]
[1726434640563,56.57554316,2339.3,2339.2,24.19995859]
[1726434640970,56.57554316,2339.3,2339.2,13.15023687]
[1726434641167,56.57554316,2339.3,2339.2,23.34692766]
[1726434641369,56.57554316,2339.3,2339.2,23.42545174]
[1726434641563,56.57554316,2339.3,2339.2,8.53025174]
[1726434641772,56.57554316,2339.3,2339.2,8.23643475]
[1726434642071,56.57554316,2339.3,2339.2,8.44822383]
[1726434643767,56.57554316,2339.3,2339.2,8.36970775]
[1726434645072,56.57554316,2339.3,2339.2,17.26490775]
[1726434645275,56.57554316,2339.3,2339.2,23.69290775]
[1726434646669,56.57554316,2339.3,2339.2,23.77143142]
[1726434646864,31.63996952,2339.3,2339.2,23.48111867]
[1726434647061,31.63996952,2339.3,2339.2,32.35561241]
[1726434647062,22.35487839,2339.3,2339.2,32.35561241]
[1726434647270,3.2078,2340.9,2339.2,32.35561241]
[1726434647573,3.2078,2340.9,2340.2,3.2078]
[1726434647574,2.9988,2340.9,2340.2,3.2078]
[1726434647870,2.9988,2340.9,2339.9,0.214]
[1726434647871,3.5948,2341.5,2340.7,4.62]
[1726434648170,3.2078,2341.5,2340.9,3.2078]
[1726434648373,20.30167004,2341.5,2340.9,3.2078]
[1726434648567,3.2078,2341.5,2341.0,4.46306174]
[1726434648769,3.2078,2341.5,2341.1,0.20926117]
[1726434649173,3.2078,2341.5,2341.2,4.46306174]
[1726434649770,0.806,2342.3,2341.3,3.2078]
[1726434649771,3.2078,2342.1,2341.3,3.2078]
[1726434650073,3.2078,2342.1,2341.5,3.2078]
[1726434650074,17.09387004,2342.0,2341.5,3.2078]
[1726434650281,3.2078,2342.1,2341.5,3.2078]
[1726434650475,3.2078,2342.1,2341.6,4.84975933]
[1726434651183,0.806,2342.3,2341.8,3.2078]
[1726434651372,3.2078,2342.4,2341.8,3.2078]
[1726434651680,17.09387004,2342.3,2341.9,4.79030233]
[1726434651874,21.2078,2342.4,2341.9,4.79030233]
[1726434651875,38.30167004,2342.4,2341.9,4.79030233]
[1726434652074,38.30167004,2342.4,2341.8,4.79030233]
[1726434652268,38.30167004,2342.4,2341.6,4.79030233]
[1726434652269,17.09387004,2342.3,2341.6,3.2078]
[1726434652669,17.09387004,2342.0,2341.8,4.7153129]
[1726434652873,17.09387004,2342.0,2341.7,4.7153129]
[1726434653074,35.49987004,2342.0,2341.6,4.7153129]
[1726434653376,35.49987004,2342.0,2341.5,0.214]
[1726434653577,35.49987004,2342.0,2341.6,4.51675854]
[1726434654369,17.09387004,2341.7,2341.6,2.60845854]
[1726434654773,17.09387004,2341.7,2341.4,4.44105123]
[1726434654976,3.2078,2341.5,2340.3,0.4272]
[1726434655175,3.2078,2341.2,2340.3,0.6412]
[1726434655382,3.2078,2341.2,2340.8,2.15014537]
[1726434655676,3.2078,2341.2,2340.5,3.2078]
[1726434656183,20.30167004,2341.2,2340.9,4.70117679]
[1726434656382,20.30167004,2341.2,2340.6,4.70117679]
[1726434656582,20.30167004,2341.2,2341.0,4.50132753]
[1726434656784,20.30167004,2341.2,2340.5,3.2078]
[1726434656785,20.30167004,2341.2,2340.6,4.50132753]
[1726434657176,20.30167004,2341.2,2340.5,3.2078]
[1726434657375,20.30167004,2341.2,2340.6,4.54744142]
[1726434657775,17.09387004,2340.7,2340.6,3.91124142]
[1726434658177,35.09387004,2340.7,2340.4,4.54744142]
[1726434658490,17.09387004,2340.6,2340.3,0.214]
[1726434658675,18.0,2340.7,2339.3,3.2078]
[1726434658676,15.93927839,2340.1,2339.3,3.2078]
[1726434658876,33.03314843,2340.1,2339.3,3.2078]
[1726434659076,15.93927839,2340.1,2340.0,4.49029228]
[1726434659284,15.93927839,2340.1,2339.9,3.2078]
[1726434659686,15.93927839,2340.1,2340.0,4.52697759]
[1726434659876,15.93927839,2340.1,2339.8,3.2078]
[1726434660077,15.93927839,2340.1,2339.8,7.73477759]
[1726434660285,15.93927839,2340.1,2340.0,4.52697759]
[1726434660476,15.93927839,2340.1,2339.8,3.2078]
[1726434660675,15.93927839,2340.1,2339.9,4.76907033]
[1726434660879,51.03314843,2340.1,2340.0,3.49647033]
[1726434661075,17.09387004,2339.9,2339.3,3.42048463]
[1726434661280,17.09387004,2339.6,2339.4,4.60019094]
[1726434661483,17.09387004,2339.5,2338.9,0.414]
[1726434661780,35.09387004,2339.5,2339.3,4.60019094]
[1726434661973,17.09387004,2339.5,2339.1,3.2078]
[1726434662180,3.6192,2339.9,2339.2,4.60019094]
[1726434662380,3.6192,2339.9,2339.1,3.2078]
[1726434662381,38.71307004,2339.9,2339.1,3.2078]
[1726434662580,3.6192,2339.9,2339.1,3.2078]
[1726434662786,15.93927839,2340.1,2339.6,3.2078]
[1726434662986,15.93927839,2340.1,2339.2,9.3112853]
[1726434663182,19.14707839,2340.1,2339.7,4.6912853]
[1726434663487,15.93927839,2340.1,2339.7,3.2078]
[1726434663881,15.93927839,2340.1,2339.8,4.82986472]
[1726434664482,14.44370695,2340.1,2340.0,3.2078]
[1726434664888,12.52106857,2340.1,2340.0,7.92488791]
[1726434665586,9.95765321,2340.1,2340.0,7.92488791]
[1726434666181,9.95765321,2340.1,2340.0,4.71708791]
[1726434666377,9.95765321,2340.1,2340.0,14.35288791]
[1726434666582,9.95765321,2340.1,2340.0,13.9094]
[1726434666796,9.95765321,2340.1,2340.0,14.46806111]
[1726434666977,9.95765321,2340.1,2340.0,18.74166111]
[1726434666978,9.11125321,2340.1,2340.0,18.74166111]
[1726434667178,5.90760561,2340.1,2340.0,18.8201531]
[1726434667488,5.90760561,2340.1,2340.0,20.12158738]
[1726434667489,5.27110561,2340.1,2340.0,20.12158738]
[1726434667687,4.81938925,2340.1,2340.0,19.90839601]
[1726434667886,4.81938925,2340.1,2340.0,20.46180783]
[1726434668085,4.75938925,2340.1,2340.0,19.15710518]
[1726434668390,4.75938925,2340.1,2340.0,20.45742864]
[1726434668590,4.75938925,2340.1,2340.0,20.12047656]
[1726434669089,4.75938925,2340.1,2340.0,18.95374166]
[1726434669285,4.75938925,2340.1,2340.0,8.25214166]
[1726434671887,4.75938925,2340.1,2340.0,18.52574166]
[1726434672585,4.75938925,2340.1,2340.0,19.61398457]
[1726434672782,4.75938925,2340.1,2340.0,19.40190402]
[1726434672783,4.71738925,2340.1,2340.0,19.40190402]
[1726434673089,4.71738925,2340.1,2340.0,21.60973969]
[1726434673392,4.71738925,2340.1,2340.0,20.97418589]
[1726434673587,4.71738925,2340.1,2340.0,21.53124872]
[1726434673793,3.64948391,2340.1,2340.0,21.53124872]
[1726434674092,3.64948391,2340.1,2340.0,20.9746167]
[1726434674393,3.64948391,2340.1,2340.0,9.36326902]
[1726434674684,3.64948391,2340.1,2340.0,10.69793763]
[1726434674889,3.64948391,2340.1,2340.0,9.36326902]
[1726434675089,3.64948391,2340.1,2340.0,8.04006111]
[1726434675483,20.74335395,2340.1,2340.0,4.83226111]
[1726434675895,20.74335395,2340.1,2339.9,4.58663234]
[1726434676192,38.74335395,2340.1,2339.8,4.58663234]
[1726434676382,38.74335395,2340.1,2339.9,3.2078]
[1726434676383,20.02974434,2340.1,2339.9,3.2078]
[1726434676692,2.9358743,2340.1,2340.0,4.57079515]
[1726434676997,2.9358743,2340.1,2340.0,0.73149515]
[1726434676998,47.23754434,2340.1,2340.0,0.73149515]
[1726434677291,47.23754434,2340.1,2340.0,0.30909515]
[1726434678491,41.23754434,2340.1,2340.0,0.30909515]
[1726434679501,12.1436743,2340.1,2339.5,0.73481899]
[1726434679689,3.2078,2339.6,2339.3,0.73506067]
[1726434679890,15.59057667,2339.4,2338.7,2.76635246]
[1726434680086,15.59057667,2338.8,2338.6,1.10486022]
[1726434680291,15.59057667,2338.8,2338.7,4.8159641]
[1726434680493,3.2078,2339.0,2338.4,10.86004829]
[1726434680686,3.2078,2339.0,2338.5,5.83018599]
[1726434680687,15.59057667,2338.9,2338.5,5.83018599]
[1726434680889,15.59057667,2338.9,2338.7,4.72532577]
[1726434681088,33.59057667,2338.9,2338.5,1.10486022]
[1726434681298,33.59057667,2338.9,2338.6,4.72532577]
[1726434681494,33.59057667,2338.9,2338.4,10.86004829]
[1726434681800,33.59057667,2338.9,2338.5,4.81732461]
[1726434682002,33.59057667,2338.9,2338.4,10.86004829]
[1726434682297,3.2078,2339.0,2338.5,5.92218483]
[1726434682798,3.2078,2339.0,2338.5,10.54218483]
[1726434683392,3.2078,2339.3,2338.8,4.62]
[1726434683596,3.2078,2339.3,2338.8,4.8350425]
[1726434683797,3.2078,2339.3,2338.9,4.78331281]
[1726434684395,2.9358743,2340.1,2339.2,7.8278]
[1726434684396,3.2078,2339.8,2339.2,7.8278]
[1726434684596,2.9358743,2340.1,2339.6,4.62]
[1726434684797,2.9358743,2340.1,2340.0,4.62]
[1726434684996,2.2778743,2340.1,2340.0,4.83300563]
[1726434685195,2.2778743,2340.1,2340.0,9.7713281]
[1726434685395,3.2078,2340.6,2340.0,9.7713281]
[1726434685598,36.79837667,2340.6,2340.0,9.7713281]
[1726434689194,36.79837667,2340.6,2340.0,4.93832247]
[1726434689402,15.59057667,2340.1,2340.0,5.36556247]
[1726434689798,15.59057667,2340.1,2340.0,0.42724]
[1726434689995,15.59057667,2340.1,2340.0,4.99446831]
[1726434690302,0.42693,2341.7,2340.0,4.99446831]
[1726434690303,3.2078,2340.6,2340.0,9.40397217]
[1726434690502,14.70518667,2340.3,2340.2,0.42719]
[1726434690694,21.2078,2340.6,2340.0,9.40397217]
[1726434691003,21.2078,2340.6,2340.5,0.42715]
[1726434691004,3.2078,2340.6,2340.5,0.42715]
[1726434691396,3.2078,2340.6,2340.5,5.26563576]
[1726434692794,35.91298667,2340.6,2340.5,4.83848576]
[1726434693202,35.91298667,2340.6,2339.9,4.83482517]
[1726434693398,3.2078,2340.2,2340.1,4.93894376]
[1726434693602,14.70518667,2339.8,2339.6,1.10486022]
[1726434693802,14.70518667,2339.7,2339.6,0.4273]
[1726434694204,32.70518667,2339.7,2339.6,5.36625376]
[1726434694409,31.20925597,2339.7,2339.6,4.93894376]
[1726434694610,31.20925597,2339.7,2339.6,5.36625376]
[1726434694810,31.20925597,2339.7,2339.1,6.11216022]
[1726434694811,3.2078,2340.2,2339.4,9.40806402]